Cogmind - Beta 13 @@@ ROGUE MODE // 2024.04.28 @ 14:27:14 Player: Miles Result: Core destroyed Performance ------------- Evolutions (3) 1500 Regions Visited (5) 1000 Robots Destroyed (64) 320 Value Destroyed (1994) 1994 Prototype IDs (2) 40 Alien Tech Used (0) 0 Bonus (566) 566 TOTAL SCORE: 5420 Bonus ------- High Alert Combat Kills 66 Entered DSFs 500 Cogmind --------- Core Integrity 0/700 Matter 240/300 Energy 253/275 System Corruption 1% Temperature Critical (578) Movement Walking (190) Ox1 Location -7/DSF Parts ------- > --- POWER (1) -------- Deuterium Engine > --- PROPULSION (4) --- Aluminum Leg Aluminum Leg Aluminum Leg > --- UTILITY (5) ------ Large Storage Unit Visual Processing Unit Transport Network Coupler Hacking Suite Hacking Suite > --- WEAPON (3) ------- Gauss Rifle Great Axe > --- INVENTORY (15) --- Deuterium Engine Deuterium Engine Deuterium Engine Improved Heat Sink Authchip [R/Combat] Authchip [R/Combat] Proton Cannon Proton Cannon Peak State ------------ > --- POWER ------------ Light Nuclear Core > --- PROPULSION ------- Nuclear Pulse Thruster Nuclear Pulse Thruster Nuclear Pulse Thruster Nuclear Pulse Thruster > --- UTILITY ---------- Huge Storage Unit Medium Matter Pod Visual Processing Unit Transport Network Coupler Authchip [Device] > --- WEAPON ----------- Shock Rifle Gauss Rifle Great Axe > --- INVENTORY -------- Nuclear Pulse Thruster Nuclear Pulse Thruster Improved Heat Sink Large Storage Unit Target Analyzer Authchip [R/Combat] Authchip [R/Combat] Authchip [R/Combat] Axe [Rating: 46] Favorites ----------- Power Ion Engine Engine Ion Engine Power Core Light Nuclear Core Propulsion Light Treads Treads Light Treads Leg Aluminum Leg Wheel Wheel Flight Unit Nuclear Pulse Thruster Utility Large Storage Unit Device Tractor Beam Storage Large Storage Unit Processor Transport Network Coupler Hackware Authchip [Device] Protection Heavy Armor Plating Weapon Assault Rifle Energy Gun Particle Gun Ballistic Gun Assault Rifle Ballistic Cannon Advanced Assault Cannon Launcher Grenade Launcher Special Weapon Mining Laser Slashing Weapon Axe Build | -11 -10 -9 -8 -7 -7 ------- Run | Yrd Mat Mat Mat Fac DSF Slots Evolved 6 | . . 2 2 2 . Power . | . . . . . . Propulsion 2 | . . 1 . 1 . Utility 3 | . . 1 1 1 . Weapon 1 | . . . 1 . . Parts Attached 87 | 7 4 18 26 1 31 Power 6 | 1 1 1 1 . 2 Engine 5 | 1 1 1 1 . 1 Core 1 | . . . . . 1 Reactor . | . . . . . . Propulsion 27 | 2 . 6 8 1 10 Treads 13 | 2 . 6 4 . 1 Leg 5 | . . . 1 1 3 Wheel 4 | . . . 3 . 1 Hover . | . . . . . . Flight 5 | . . . . . 5 Utility 20 | 2 2 2 5 . 9 Device 5 | 1 1 1 2 . . Storage 7 | 1 1 . 1 . 4 Processor 3 | . . 1 . . 2 Hackware 3 | . . . . . 3 Protection 2 | . . . 2 . . Artifact . | . . . . . . Weapon 34 | 2 1 9 12 . 10 Energy Gun 6 | . . 1 4 . 1 Energy Cannon . | . . . . . . Ballistic Gun 14 | 2 1 6 4 . 1 Ballistic Cannon 2 | . . . . . 2 Launcher 8 | . . 2 3 . 3 Special Weapon 1 | . . . . . 1 Impact Weapon . | . . . . . . Slashing Weapon 3 | . . . 1 . 2 Piercing Weapon . | . . . . . . Special Melee Weapon . | . . . . . . Unidentified Prototypes 2 | . . 2 . . . Parts Lost 39 | . . . 23 . 16 Power 2 | . . . 1 . 1 Propulsion 12 | . . . 8 . 4 Utility 7 | . . . 4 . 3 Weapon 18 | . . . 10 . 8 Highest Loss Streak 11 | . . . 11 . 7 To Critical Strikes . | . . . . . . Average Slot Usage (%) 88 | . 100 99 88 35 66 Engine 9 | . 14 11 8 . . Treads 21 | . 28 33 20 . 2 Leg 1 | . . . . 12 7 Wheel 1 | . . . 2 . 1 Device 7 | . 14 10 4 . . Storage 12 | . 14 11 14 7 11 Processor 7 | . . 11 9 7 12 Hackware 1 | . . . . . 5 Energy Gun 1 | . . . 1 7 3 Ballistic Gun 17 | . 28 21 16 . 3 Slashing Weapon 2 | . . . 6 . 5 Naked Turns . | . . . . . . Heaviest Build 98 | 13 30 32 49 23 98 Greatest Support 63 | 40 40 63 63 10 30 Greatest Overweight (x) 13 | . . . 13 7 9 Average Overweight (x) . | . . . . 3 2 Largest Inventory Capacity 25 | 8 15 15 15 15 25 Average Capacity 14 | 7 14 15 15 15 15 Most Carried 15 | 8 15 15 15 8 12 Average Carried 11 | 5 13 14 13 7 6 Final Capacity 15 | 8 15 15 15 15 15 Final Carried 15 | 8 15 15 7 7 8 Class Distribution -------------------- 60% | Mutant 36% | Scavenger-Mutant Dominant Class ---------------- Mutant | -10/Materials Mutant | -9/Materials Scavenger-Mutant | -8/Materials Scavenger-Mutant | -7/Factory Scavenger-Mutant | -7/DSF Resources | -11 -10 -9 -8 -7 -7 ----------- Run | Yrd Mat Mat Mat Fac DSF Matter Collected 1791 | 285 230 408 443 . 425 Remotely 638 | . 230 408 . . . Salvage Created 2113 | 146 168 402 969 . 428 Parts 157 | 13 17 39 65 . 23 Haulers Intercepted 2 | . 1 1 . . . Recyclers Shooed 1 | . . . 1 . . Parts Field Recycled . | . . . . . . Retrieved Matter . | . . . . . . Parts Self-Destructed . | . . . . . . Prevented . | . . . . . . Kills | -11 -10 -9 -8 -7 -7 ------- Run | Yrd Mat Mat Mat Fac DSF Combat Hostiles Destroyed 49 | . 4 12 24 . 9 Melee 11 | . . . 8 . 3 Guns 23 | . 4 6 10 . 3 Cannons 2 | . . . . . 2 AOE 13 | . . 6 6 . 1 Classes Destroyed 13 | 3 4 2 2 . 2 Worker 4 | 2 . 1 1 . . Builder 2 | . . 1 1 . . Tunneler 1 | 1 . . . . . Hauler 2 | . 1 1 . . . Recycler 1 | 1 . . . . . Watcher 5 | . 1 2 2 . . Swarmer 12 | . 2 4 6 . . Grunt 22 | . 2 7 10 . 3 Sentry 7 | . . 1 5 . 1 Specialist 3 | . . . 2 . 1 Hunter 2 | . . . . . 2 Programmer 1 | . . . . . 1 Heavy 2 | . . . 1 . 1 Best Kill Streak 10 | 1 2 6 10 . 3 Combat Bots Only 9 | . 2 4 9 . 3 Max Kills in Single Turn 4 | 1 1 4 3 . 1 Gunslinging . | . . . . . . Exploded 4 | . . 4 2 . 1 Melee 1 | . . . 1 . 1 Uniques/NPCs Destroyed . | . . . . . . Combat | -11 -10 -9 -8 -7 -7 -------- Run | Yrd Mat Mat Mat Fac DSF Hostile Shots Fired 498 | . 21 54 244 . 179 Missed 135 | . 4 12 62 . 57 Damage Taken 5652 | . 210 578 2827 . 2037 Core 1216 | . 32 27 401 . 756 Absorbed by Shields . | . . . . . . Core Remaining (%) 76 | 100 87 93 27 . . Volleys Fired 132 | 4 15 38 48 . 27 Largest 3 | 2 2 2 3 . 3 Hottest 133 | 40 40 53 133 . 120 Shots Fired 259 | 7 30 66 111 . 45 Gun 225 | 7 30 62 101 . 25 Cannon 12 | . . . . . 12 Launcher 22 | . . 4 10 . 8 Special . | . . . . . . Kinetic 207 | 7 30 62 81 . 27 Thermal 16 | . . . 16 . . Explosive 22 | . . 4 10 . 8 Electromagnetic 14 | . . . 4 . 10 Robot Hit Streak 21 | 2 6 9 21 . 8 Robot Miss Streak 3 | 1 3 3 1 . 2 Penetration Max 1 | . . . . . 1 Secondary Targets 4 | . 1 . 2 . 1 Max Gunslinging Chain 1 | . 1 . 1 . 1 Shots Hit Robots 205 | 4 17 43 107 . 34 Core Hits 114 | 4 11 27 55 . 17 Critical Kills . | . . . . . . Critical Parts Destroyed . | . . . . . . Critical Strikes 5 | . . . 1 . 4 Blast 3 | . . . . . 3 Corrupt 1 | . . . . . 1 Sever 1 | . . . 1 . . Melee Attacks 25 | . . . 21 . 4 Impact . | . . . . . . Slashing 25 | . . . 21 . 4 Piercing . | . . . . . . Sneak Attacks 1 | . . . 1 . . Combat Hostiles . | . . . . . . Follow-up Attacks 1 | . . . . . 1 Damage Inflicted 4714 | 69 196 907 2570 . 972 Guns 2345 | 69 196 497 1249 . 334 Cannons 193 | . . . . . 193 Explosions 1552 | . . 410 791 . 351 Melee 624 | . . . 530 . 94 Ramming . | . . . . . . Kinetic 2200 | 69 196 497 1005 . 433 Thermal 188 | . . . 188 . . Explosive 1552 | . . 410 791 . 351 Electromagnetic 150 | . . . 56 . 94 Impact . | . . . . . . Slashing 624 | . . . 530 . 94 Piercing . | . . . . . . Highest Corruption 1 | . . . 1 . 1 Average Corruption 1 | . . . 1 . 1 Corruption Purged . | . . . . . . Corruption Blocked . | . . . . . . Effects 3 | . . . 1 . 2 Matter Fused 1 | . . . . . 1 Heat Flow Errors 1 | . . . . . 1 Data Loss (minor) 1 | . . . 1 . . Overload Shots . | . . . . . . Overflow Damage 122 | . . 10 106 . 6 Projectiles . | . . . . . . Explosions 48 | . . 10 32 . 6 Melee 74 | . . . 74 . . Knockbacks 2 | . . . . . 2 Impact . | . . . . . . Kinetic 2 | . . . . . 2 Secondary . | . . . . . . Self-Inflicted Damage 274 | . . 5 190 . 79 Shots 13 | . . 1 8 . 4 Rammed . | . . . . . . Targets Rammed . | . . . . . . Kicked . | . . . . . . Crushed . | . . . . . . Highest Temperature 578 | . 5 24 563 . 578 Average Temperature 152 | . 5 10 150 . 179 Received Heat Transfer 1521 | . 72 294 738 . 417 Effects 18 | . . . 12 . 6 Shutdowns 2 | . . . 1 . 1 Energy Bleed 3 | . . . 2 . 1 Interference 5 | . . . 2 . 3 Short Circuit 1 | . . . 1 . . Damage (major) 5 | . . . 5 . . Damage (core) 2 | . . . 1 . 1 Siege Activations . | . . . . . . Robots Corrupted . | . . . . . . Combat Hostiles . | . . . . . . Parts Fried . | . . . . . . Impact Corruptions . | . . . . . . Robots Melted . | . . . . . . Combat Hostiles . | . . . . . . Parts Melted . | . . . . . . Heat Transferred 481 | . . . 481 . . Parts Sabotaged . | . . . . . . Parts Stolen . | . . . . . . Parts Stripped . | . . . . . . Power Chain Reactions . | . . . . . . Alert | -11 -10 -9 -8 -7 -7 ------- Run | Yrd Mat Mat Mat Fac DSF Peak Influence 425 | 20 158 349 425 179 260 Initial 179 | . 13 18 102 179 125 Average 146 | 10 38 161 238 179 194 Maximum Alert Level 2 | . . 1 2 . 1 Low Security (%) 70 | 100 100 61 50 100 52 Level 1 25 | . . 38 34 . 47 Level 2 4 | . . . 15 . . Level 3 . | . . . . . . Level 4 . | . . . . . . Level 5 . | . . . . . . High Security . | . . . . . . Max Security . | . . . . . . Sterilizations 1 | . . . . . 1 Squads Dispatched 9 | . 1 . 7 . 1 Investigation 2 | . . . 2 . . Extermination . | . . . . . . Reinforcement 5 | . 1 . 3 . 1 Assault . | . . . . . . Garrison 2 | . . . 2 . . Intercept . | . . . . . . Searches Triggered . | . . . . . . Construction Impeded 1 | . . . 1 . . Haulers Reinforced . | . . . . . . Active Scanning Responses . | . . . . . . Cargo Convoy Interrupts . | . . . . . . Stealth | -11 -10 -9 -8 -7 -7 --------- Run | Yrd Mat Mat Mat Fac DSF Distress Signals 6 | . 1 3 2 . . Communications Jammed . | . . . . . . Distress Signals . | . . . . . . Times Spotted 74 | . 13 18 32 . 11 Peak Tracking Total 7 | . 4 5 7 . 4 Tactical Retreats 4 | . 1 . 1 . 2 Traps | -11 -10 -9 -8 -7 -7 ------- Run | Yrd Mat Mat Mat Fac DSF Traps Triggered 2 | . . . 1 . 1 Indirectly . | . . . . . . Trap Hack Attempts . | . . . . . . Triggered . | . . . . . . Disarmed . | . . . . . . Reprogrammed . | . . . . . . Reused . | . . . . . . Traps Extracted . | . . . . . . Installed . | . . . . . . Triggered . | . . . . . . Machines | -11 -10 -9 -8 -7 -7 ---------- Run | Yrd Mat Mat Mat Fac DSF Machines Disabled 2 | . . 1 . . 1 Max in Single Turn 1 | . . 1 . . 1 Machines Repaired . | . . . . . . Machines Dismantled . | . . . . . . Machines Sabotaged . | . . . . . . Overloaded Fab Kills . | . . . . . . Hacking | -11 -10 -9 -8 -7 -7 --------- Run | Yrd Mat Mat Mat Fac DSF Machines Accessed 6 | . 1 . 4 1 . Terminals 4 | . . . 3 1 . Fabricators . | . . . . . . Repair Stations 1 | . 1 . . . . Recycling Units . | . . . . . . Scanalyzers . | . . . . . . Garrison Access 1 | . . . 1 . . Total Hacks 11 | . 3 . 6 2 . Successful 5 | . 1 . 3 1 . Failed 6 | . 2 . 3 1 . Catastrophic 1 | . . . 1 . . Database Lockouts . | . . . . . . Manual 2 | . . 1 1 . . Terminals 6 | . . . 4 2 . Fabricators . | . . . . . . Repair Stations 3 | . 3 . . . . Recycling Units . | . . . . . . Scanalyzers . | . . . . . . Garrison Access 2 | . . . 2 . . Terminal Hacks 4 | . . . 3 1 . Open DSF 1 | . . . . 1 . Investigation Status 1 | . . . 1 . . Hauler Manifests 1 | . . . 1 . . Zone Layout 1 | . . . 1 . . Fabricator Hacks . | . . . . . . Repair Station Hacks 1 | . 1 . . . . Scan Component 1 | . 1 . . . . Recycling Unit Hacks . | . . . . . . Scanalyzer . | . . . . . . Garrison Access Hacks . | . . . . . . Unauthorized Hacks . | . . . . . . Terminals . | . . . . . . Fabricators . | . . . . . . Repair Stations . | . . . . . . Recycling Units . | . . . . . . Scanalyzers . | . . . . . . Garrison Access . | . . . . . . Data Cores Recovered . | . . . . . . Used . | . . . . . . Hacking Detections 4 | . 1 . 2 1 . Full Trace Events 2 | . 1 . 1 . . Feedback Events 1 | . . . 1 . . Corruption 1 | . . . 1 . . Feedback Blocked . | . . . . . . Robot Schematics Acquired . | . . . . . . Robots Built . | . . . . . . Authchips . | . . . . . . Time . | . . . . . . Total Robot Build Rating . | . . . . . . Part Schematics Acquired . | . . . . . . Parts Built . | . . . . . . Authchips . | . . . . . . Time . | . . . . . . Total Part Build Rating . | . . . . . . Parts Repaired . | . . . . . . Time . | . . . . . . Parts Recycled . | . . . . . . Recycled Matter . | . . . . . . Retrieved Matter . | . . . . . . Retrieved Components . | . . . . . . Parts Scanalyzed . | . . . . . . Part Schematics Acquired . | . . . . . . Parts Damaged . | . . . . . . Bothacking | -11 -10 -9 -8 -7 -7 ------------ Run | Yrd Mat Mat Mat Fac DSF Used RIF Installer . | . . . . . . Robots Hacked . | . . . . . . Non-combat . | . . . . . . Combat . | . . . . . . Robot Hacks Applied . | . . . . . . Relay Couplers Released . | . . . . . . Fabnet Peak Effective % . | . . . . . . Robots Rewired . | . . . . . . Allies Hacked . | . . . . . . Hacks Repelled . | . . . . . . Allies | -11 -10 -9 -8 -7 -7 -------- Run | Yrd Mat Mat Mat Fac DSF Total Allies . | . . . . . . Largest Group . | . . . . . . Highest-Rated Group . | . . . . . . Highest-Rated Ally . | . . . . . . Total Orders . | . . . . . . Ally Attacks . | . . . . . . Total Damage . | . . . . . . Kills . | . . . . . . Allies Corrupted . | . . . . . . Allies Melted . | . . . . . . Intel | -11 -10 -9 -8 -7 -7 ------- Run | Yrd Mat Mat Mat Fac DSF Robot Analysis Total . | . . . . . . Derelict Logs Recovered . | . . . . . . Drone Launches . | . . . . . . Drone Recoveries . | . . . . . . Exploration | -11 -10 -9 -8 -7 -7 ------------- Run | Yrd Mat Mat Mat Fac DSF Turns Passed 2897 | 233 719 577 798 54 516 Spaces Moved 1339 | 130 400 267 323 18 201 Core 30 | 8 . . 5 5 12 Treads 1059 | 122 400 267 259 . 11 Legs 105 | . . . 1 13 91 Wheels 108 | . . . 58 . 50 Hover . | . . . . . . Flight 37 | . . . . . 37 Fastest Speed 31 | 50 160 160 95 260 31 Average Speed 163 | 153 160 160 156 298 179 Slowest Speed 700 | 160 160 160 700 400 677 Overloaded Moves . | . . . . . . Propulsion Burnouts . | . . . . . . Robots Hopped . | . . . . . . Cave-ins Triggered . | . . . . . . Exploration Rate (%) 30 | 5 38 20 30 1 86 Regions Visited 5 Branch Regions . Pre-discovered Areas . | . . . . . . Known Exits Taken 1 | . . . . 1 . Unknown Exits Taken 4 | 1 1 1 1 . . Scrap Searched . | . . . . . . Spaces Dug . | . . . . . . Terrain Destroyed 99 | . . 21 42 . 36 Melee . | . . . . . . Projectile . | . . . . . . AOE 99 | . . 21 42 . 36 Terrain Rammed . | . . . . . . Walls Destroyed . | . . . . . . Machines Disabled . | . . . . . . Actions | -11 -10 -9 -8 -7 -7 --------- Run | Yrd Mat Mat Mat Fac DSF Total 1778 | 157 454 354 485 19 309 Wait 82 | . 14 13 50 . 5 Move 1334 | 129 399 266 322 17 201 Hop . | . . . . . . Pick Up 81 | 16 13 7 11 1 33 Fast Attach 6 | . 1 1 2 . 2 Attach 56 | 7 . 2 18 1 28 Detach 2 | . . . 1 . 1 Swap 25 | . 3 15 6 . 1 Drop 36 | 1 9 12 6 . 8 Fire 132 | 4 15 38 48 . 27 Melee 24 | . . . 21 . 3 Ram . | . . . . . . Kick . | . . . . . . Crush . | . . . . . . Escape Stasis . | . . . . . . Rewire . | . . . . . . Trap . | . . . . . . Miscellaneous . | . . . . . . Route ------- -11/Scrapyard -10/Materials (discovered 2 exits: *Mat / [*Min]) -9/Materials -8/Materials -7/Factory -7/DSF (discovered 1 exit: [*Fac]) History --------- Turn | Location | Event 3 | -11/Scrapyard | Discovered new exit (range 15) 234 | -11/Scrapyard | Entered Materials 320 | -10/Materials | Build established: Mutant 741 | -10/Materials | Discovered new exit (range 15) 929 | -10/Materials | Discovered new exit (range 15) 953 | -10/Materials | Entered another Materials area 953 | -9/Materials | Evolved 2 slots: Propulsion x1, Utility x1 1488 | -9/Materials | Discovered new exit (range 16) 1530 | -9/Materials | Entered another Materials area 1530 | -8/Materials | Evolved 2 slots: Utility x1, Weapon x1 2139 | -8/Materials | Garrison activated, responded to threat 2211 | -8/Materials | Discovered new exit (range 16) 2217 | -8/Materials | Destroyed 9 combat bots 2227 | -8/Materials | Lost 10 parts (4n1u5w) 2299 | -8/Materials | Core integrity fell below 50% 2328 | -8/Materials | Entered Factory 2328 | -7/Factory | Evolved 2 slots: Propulsion x1, Utility x1 2351 | -7/Factory | Lost 11 parts (1p3n2u5w) 2382 | -7/Factory | Identified exit to DSF 2382 | -7/Factory | Entered DSF 2465 | -7/DSF | Additional patrols routed to DSF 2493 | -7/DSF | Lost 3 parts (1n2w) 2515 | -7/DSF | Core integrity fell below 50% 2555 | -7/DSF | Lost 7 parts (1n2u4w) 2636 | -7/DSF | Discovered new exit (range 17) 2754 | -7/DSF | Core integrity fell below 20% 2790 | -7/DSF | Sterilization system engaged 2795 | -7/DSF | Lost 5 parts (1p2n1u1w) 2810 | -7/DSF | Ambient heat levels rising (+10) 2825 | -7/DSF | Ambient heat levels rising (+10) 2840 | -7/DSF | Ambient heat levels rising (+10) 2855 | -7/DSF | Ambient heat levels rising (+10) 2870 | -7/DSF | Ambient heat levels rising (+10) 2885 | -7/DSF | Ambient heat levels rising (+10) 2899 | -7/DSF | Core destroyed Last Messages --------------- 02889_ A-02 Transporter heat damages Med. Storage Unit. 02889_ A-02 Transporter heat damages core (-5). 02890_ A-02 Transporter heat damages Med. Storage Unit. 02891_ A-02 Transporter heat damages Weight Redist. System. 02892_ A-02 Transporter heat spikes uncontrollably. 02893_ A-02 Transporter heat damages Lgt. Treads. 02894_ A-02 Transporter heat spikes uncontrollably. 02895_ A-02 Transporter heat damages Ion Engine, Lgt. Treads, Transport Network Coupler, Lgt. Treads. 02896_ Overheating: Energy bleed (-49). 02896_ A-02 Transporter heat spikes uncontrollably. 02896_ A-02 Transporter heat damages Med. Storage Unit, Lgt. Treads, Weight Redist. System, Lgt. Treads. 02898_ Power failure, Deuterium Engine shutdown. 02898_ Overheating: System interference. 02898_ Great Axe temporarily disabled. 02898_ Transport Network Coupler temporarily disabled. 02898_ Great Axe temporarily disabled. 02898_ A-02 Transporter heat damages Weight Redist. System. 02899_ Overheating: Core damaged (-84). Map ----- +----------------------------------------------------+ | ???????????????????????????????????? | | ???????????????????????????????????? | | ???????????????????????????????????? | | ???????????????????????????????????? | | ?????????""????????????????????????? | | ?????????#"????????????????????????? | | ??????####"#????????#########??????? | | ??????#"""""?########]] **!!#?###??? | | ??????#"""""## # #]] !!#!!!# # | | ??????#"" [%!! ^ | | ????""""" *=*[%" | | ??????#"" ## #! ###*=%###!!!#!!# | | ??????### #?# #!!!###=%!###?!!#??# | | ????????# ??######## * #??##??? | | ???????# ??????????# #??????? | | ???????# ??????????# #??????? | | ???????## ??????????### ###??????? | | ???????# ?????????#] !!#??????? | | ???????# ?????????#] !!#??????? | | ???????? ?????????#]] !!#??????? | | ??????### ?########### ########## | | ??????#!! ?#!!!#!!!### ### ==#!!! | | ??????#!! ##!!!#!!!##a a## /!#!!! | | ??????# !!= | | ??????# *%% | | ??????# @ a | | ??????#[[ ## #!!!## ##!!!#!!! | | ??????#[[ ## #!!!### ###!!!#!!! | | ??????### ############ ########## | | ???????? /????????#!! !!???????# | | ???????# /????????#!! !!#??????# | | ???????# /????????#!! !!#??????# | | ???????## ##???????### "##??????# | | ???????#/ [????????#** #????### | | ???????#/ [????????#** ###??# | | ????????# #?########** # #### | | ??????### ### ]#///### ## #!= | | ????###"" ## #///### # [# | | ????""""" = | | ??????#"" % ! ! | | ??????#"""""## # # !% "! | | ??????#"""""#########% !!! #### | | ??????####"##???????###"##%####??## | | ?????????#"#??????????######??????## | | ?????????""#???????????????????????? | | ?????????##????????????????????????? | | ???????????????????????????????????? | | ???????????????????????????????????? | | ???????????????????????????????????? | | ???????????????????????????????????? | +----------------------------------------------------+ Best States ------------- Heat Dissipation 34 Energy Generation 16 Energy Capacity 290 Matter Stores 450 Matter Capacity 450 Sight Range 18 Terrain Scan Range 16 Terrain Scan Density 10 Armor Coverage 600 Resistance: EM 15 Evasion (%) 55 Target Analysis 5 Recoil Reduction 7 Offensive Hacking 20 Authchip Count 4 Item Schematics ----------------- None Robot Schematics ------------------ None Fabricated ------------ Nothing Alien Tech Used ----------------- None Achievements -------------- None Challenges ------------ None Game ------ Seed StealthWaveProjector Manual? 0 Play Time 00:31:47 Cumulative 8.6 hours Start 2024.04.27 @ 17:16:37 End 2024.04.28 @ 14:27:14 Sessions 5 Manual Loads 0 Difficulty Rogue Special Mode None Game No. 13 Rogue 13 Adventurer 0 Explorer 0 Win Type - Total 0 Types 0/0/0/0/0/0/0/0/0 Lore% 5 Gallery% 16 Achievement% 14 Wizard Run 0 Options --------- Layout 0 ASCII 0 Keyboard 0 Movement Mouse Keybinds 0 Fullscreen 1 Font 18/SmallcapsGlow Map View 76x50 Zoom Use 0% Tactical HUD 1 Map Filters NONE Filters NONE Steam 1 RUN: eca6ea2c-8083-4c5f-9f05-f845195a3ba2